fUSD/lending_fUSD_20250814
["ID","MTS","AMOUNT","RATE_DAILY","PERIOD"]
[379132373,1755152013549,-500.0,0.00059726,120]
[379132374,1755152013559,-400.0,0.00059726,120]
[379132375,1755152013569,-3126.37,0.00059726,120]
[379132376,1755152013578,-4802.33,0.00059726,120]
[379132377,1755152013588,-738.08,0.00059726,120]
[379132378,1755152013597,-532.53,0.00059726,120]
[379132379,1755152013607,-400.0,0.00059726,120]
[379132380,1755152013616,-400.0,0.00059726,120]
[379132381,1755152013626,-1432.3,0.00059726,120]
[379132382,1755152013636,-451.43,0.00059726,120]
[379132383,1755152013645,-1799.4,0.00059726,120]
[379132384,1755152013655,-3657.22,0.00059726,120]
[379132385,1755152013665,-3965.56,0.00059726,120]
[379132386,1755152013675,-4912.44,0.00059726,120]
[379132387,1755152013684,-863.57,0.00059726,120]
[379132388,1755152013694,-865.8,0.00059726,120]
[379132389,1755152013704,-2237.49,0.00059726,120]
[379132390,1755152014073,-400.0,0.00059726,120]
[379132391,1755152014095,-400.0,0.00059726,120]
[379132392,1755152014105,-400.0,0.00059726,120]
[379132393,1755152014115,-1326.15,0.00059726,120]
[379132394,1755152014125,-1845.1,0.00059726,120]
[379132395,1755152014135,-1272.25,0.00059726,120]
[379132396,1755152014145,-2005.83,0.00059726,120]
[379132397,1755152014155,-400.0,0.00059726,120]
[379132398,1755152014165,-972.75,0.00059726,120]
[379132399,1755152014175,-2900.54,0.00059726,120]
[379132400,1755152014185,-400.0,0.00059726,120]
[379132401,1755152014195,-1144.13,0.00059726,120]
[379132402,1755152014204,-2172.78,0.00059726,120]
[379132403,1755152014214,-2076.9,0.00059726,120]
[379132404,1755152014224,-400.0,0.00059726,120]
[379132405,1755152014234,-521.6842829,0.00059726,120]
[379132406,1755152014244,-2988.88,0.00059726,120]
[379132407,1755152014253,-532.73900769,0.00059726,120]
[379132408,1755152014263,-404.44,0.00059726,120]
[379132409,1755152014273,-500.2,0.00059726,120]
[379132410,1755152014283,-569.34,0.00059726,120]
[379132411,1755152014294,-2059.24,0.00059726,120]
[379132412,1755152014304,-400.0,0.00059726,120]
[379132413,1755152014314,-2090.14,0.00059726,120]
[379132414,1755152014325,-756.39,0.00059726,120]
[379132415,1755152014335,-400.0,0.00059726,120]
[379132416,1755152014345,-3724.14,0.00059726,120]
[379132417,1755152014355,-400.0,0.00059726,120]
[379132418,1755152014365,-1288.69,0.00059726,120]
[379132419,1755152014375,-433.35,0.00059726,120]
[379132420,1755152014385,-2677.37,0.00059726,120]
[379132421,1755152014395,-642.07,0.00059726,120]
[379132422,1755152014405,-2430.89,0.00059726,120]
[379132423,1755152014415,-211.44065779,0.00059726,120]
[379132424,1755152014425,-2452.24,0.00059726,120]
[379132425,1755152014436,-455.81,0.00059726,120]
[379132426,1755152014447,-5534.33,0.00059726,120]
[379132427,1755152014457,-726.09,0.00059726,120]
[379132428,1755152014467,-439.2,0.00059726,120]
[379132429,1755152014477,-1671.75,0.00059726,120]
[379132430,1755152014487,-2660.6,0.00059726,120]
[379132431,1755152014497,-400.0,0.00059726,120]
[379132432,1755152014506,-1395.59,0.00059726,120]
[379132433,1755152014516,-3020.26,0.00059726,120]
[379132434,1755152014526,-400.0,0.00059726,120]
[379132435,1755152014535,-400.0,0.00059726,120]
[379132436,1755152014545,-400.0,0.00059726,120]
[379132437,1755152014554,-400.0,0.00059726,120]
[379132438,1755152014564,-720.26,0.00059726,120]
[379132439,1755152014573,-400.0,0.00059726,120]
[379132440,1755152014583,-1133.0,0.00059726,60]
[379132441,1755152014592,-5312.63,0.00059726,120]
[379132442,1755152014602,-680.09,0.00059726,120]
[379132443,1755152014611,-3020.77,0.00059726,120]
[379132444,1755152014621,-400.0,0.00059726,120]
[379132445,1755152014631,-4215.1,0.00059726,120]
[379132446,1755152014641,-1052.61,0.00059726,120]
[379132447,1755152014650,-703.6,0.00059726,120]
[379132448,1755152014660,-400.0,0.00059726,120]
[379132449,1755152014670,-400.0,0.00059726,120]
[379132450,1755152014680,-400.0,0.00059726,120]
[379132451,1755152014689,-400.0,0.00059726,120]
[379132452,1755152014700,-433.78,0.00059726,120]
[379132453,1755152014710,-627.09,0.00059726,120]
[379132454,1755152014720,-3691.93,0.00059726,120]
[379132455,1755152014730,-722.15,0.00059726,120]
[379132456,1755152014740,-400.0,0.00059726,120]
[379132457,1755152014749,-443.52,0.00059726,120]
[379132458,1755152014759,-3887.95,0.00059726,120]
[379132459,1755152014769,-1655.04,0.00059726,120]
[379132460,1755152014778,-576.65,0.00059726,120]
[379132461,1755152014789,-1229.44,0.00059726,120]
[379132462,1755152014799,-400.0,0.00059726,120]
[379132463,1755152014808,-831.55,0.00059726,120]
[379132464,1755152014819,-1044.57,0.00059726,120]
[379132465,1755152014829,-400.0,0.00059726,120]
[379132466,1755152014839,-937.86,0.00059726,120]
[379132467,1755152014849,-400.0,0.00059726,120]
[379132468,1755152014858,-400.0,0.00059726,120]
[379132469,1755152014868,-400.0,0.00059726,120]
[379132470,1755152014878,-465.01,0.00059726,120]
[379132471,1755152014888,-400.0,0.00059726,120]
[379132472,1755152014897,-430.45,0.00059726,120]
[379132473,1755152014907,-400.0,0.00059726,120]
[379132474,1755152014917,-1145.39,0.00059726,120]
[379132475,1755152014927,-400.0,0.00059726,120]
[379132476,1755152014937,-400.0,0.00059726,120]
[379132477,1755152014948,-400.0,0.00059726,120]
[379132478,1755152014958,-727.77,0.00059726,120]
[379132479,1755152014970,-741.62,0.00059726,120]
[379132480,1755152014980,-721.15,0.00059726,120]
[379132481,1755152014990,-819.26,0.00059726,120]
[379132482,1755152014999,-3128.9,0.00059726,120]
[379132483,1755152015009,-3068.16,0.00059726,120]
[379132484,1755152015018,-250.0,0.00059726,120]
[379132485,1755152015028,-400.0,0.00059726,120]
[379132486,1755152015038,-400.0,0.00059726,120]
[379132487,1755152015048,-400.0,0.00059726,120]
[379132488,1755152015059,-400.0,0.00059726,120]
[379132489,1755152015069,-809.93,0.00059726,120]
[379132490,1755152015079,-352.73,0.00059726,120]
[379132491,1755152015089,-611.84,0.00059726,120]
[379132492,1755152015099,-1496.83,0.00059726,15]
[379132493,1755152015108,-952.2,0.00059726,120]
[379132494,1755152015118,-1451.73,0.00059726,120]
[379132495,1755152015133,-400.0,0.00059726,120]
[379132496,1755152015144,-437.35,0.00059726,120]
[379132497,1755152015154,-400.0,0.00059726,120]
[379132498,1755152015164,-1629.11,0.00059726,120]
[379132499,1755152015174,-661.99,0.00059726,120]
[379132500,1755152015183,-515.21,0.00059726,120]
[379132501,1755152015194,-407.44939528,0.00059726,120]
[379132502,1755152015203,-400.0,0.00059726,120]
[379132503,1755152015213,-1840.29,0.00059726,120]
[379132504,1755152015222,-400.0,0.00059726,120]
[379132505,1755152015232,-400.0,0.00059726,120]
[379132506,1755152015241,-2846.48,0.00059726,120]
[379132507,1755152015251,-400.0,0.00059726,120]
[379132508,1755152015261,-3003.6,0.00059726,120]
[379132509,1755152015270,-400.0,0.00059726,120]
[379132510,1755152015279,-445.62,0.00059726,120]
[379132511,1755152015289,-507.26,0.00059726,120]
[379132512,1755152015298,-400.0,0.00059726,120]
[379132513,1755152015308,-400.0,0.00059726,120]
[379132514,1755152015318,-459.89,0.00059726,120]
[379132515,1755152015329,-1388.84,0.00059726,120]
[379132516,1755152015339,-1972.56,0.00059726,120]
[379132517,1755152015349,-1470.66,0.00059726,120]
[379132518,1755152015360,-429.43853216,0.00059726,120]
[379132519,1755152015370,-1279.9,0.00059726,120]
[379132520,1755152015380,-400.0,0.00059726,120]
[379132521,1755152015390,-400.0,0.00059726,120]
[379132522,1755152015400,-400.0,0.00059726,120]
[379132523,1755152015410,-1786.76,0.00059726,120]
[379132524,1755152015420,-1557.49,0.00059726,120]
[379132525,1755152015430,-4796.07,0.00059726,120]
[379132526,1755152015440,-400.0,0.00059726,120]
[379132527,1755152015451,-1397.98,0.00059726,120]
[379132528,1755152015460,-1255.71,0.00059726,120]
[379132529,1755152015470,-3562.17,0.00059726,120]
[379132530,1755152015480,-400.0,0.00059726,120]
[379132531,1755152015489,-2231.09,0.00059726,120]
[379132532,1755152015499,-594.96,0.00059726,120]
[379132533,1755152015509,-753.54,0.00059726,120]
[379132534,1755152015520,-411.57,0.00059726,120]
[379132535,1755152015531,-400.0,0.00059726,120]
[379132536,1755152015541,-400.0,0.00059726,120]
[379132537,1755152015551,-2275.13,0.00059726,120]
[379132538,1755152015561,-400.0,0.00059726,120]
[379132539,1755152015571,-4179.34,0.00059726,120]
[379132540,1755152015581,-400.0,0.00059726,120]
[379132541,1755152015591,-3602.81,0.00059726,120]
[379132542,1755152015601,-697.24,0.00059726,120]
[379132543,1755152015611,-400.0,0.00059726,120]
[379132544,1755152015620,-1091.59,0.00059726,120]
[379132545,1755152015631,-1188.89,0.00059726,120]
[379132546,1755152015640,-400.0,0.00059726,120]
[379132547,1755152015649,-657.82,0.00059726,120]
[379132548,1755152015658,-1943.71,0.00059726,120]
[379132549,1755152015668,-400.0,0.00059726,120]
[379132550,1755152015678,-1947.43,0.00059726,120]
[379132551,1755152015688,-621.34,0.00059726,120]
[379132552,1755152015699,-400.0,0.00059726,120]
[379132553,1755152015708,-2885.05,0.00059726,120]
[379132554,1755152015718,-1136.53,0.00059726,120]
[379132555,1755152015728,-409.26,0.00059726,120]
[379132556,1755152015739,-400.0,0.00059726,120]
[379132557,1755152015749,-1523.92,0.00059726,120]
[379132558,1755152015758,-874.51,0.00059726,120]
[379132559,1755152015767,-525.55,0.00059726,120]
[379132560,1755152015777,-400.0,0.00059726,120]
[379132561,1755152015787,-400.0,0.00059726,120]
[379132562,1755152015796,-2634.74,0.00059726,120]
[379132563,1755152015806,-400.0,0.00059726,120]
[379132564,1755152015816,-400.0,0.00059726,120]
[379132565,1755152015825,-569.15,0.00059726,120]
[379132566,1755152015835,-526.01,0.00059726,120]
[379132567,1755152015844,-1435.39,0.00059726,120]
[379132568,1755152015854,-400.0,0.00059726,120]
[379132569,1755152015863,-400.0,0.00059726,120]
[379132570,1755152015874,-400.0,0.00059726,120]
[379132571,1755152015883,-3145.12,0.00059726,120]
[379132572,1755152015894,-400.0,0.00059726,120]
[379132573,1755152015903,-400.0,0.00059726,120]
[379132574,1755152015913,-973.72,0.00059726,120]
[379132575,1755152015923,-400.0,0.00059726,120]
[379132576,1755152015934,-1535.26,0.00059726,120]
[379132577,1755152015945,-400.0,0.00059726,120]
[379132578,1755152015955,-400.0,0.00059726,120]
[379132579,1755152015965,-1237.4,0.00059726,120]
[379132580,1755152015979,-502.53,0.00059726,120]
[379132581,1755152015989,-400.0,0.00059726,120]
[379132582,1755152015999,-400.0,0.00059726,120]
[379132583,1755152016009,-994.56,0.00059726,120]
[379132584,1755152016018,-3930.5,0.00059726,120]
[379132585,1755152016028,-851.4,0.00059726,120]
[379132586,1755152016038,-1688.6,0.00059726,120]
[379132587,1755152016049,-417.86,0.00059726,120]
[379132588,1755152016059,-1138.14,0.00059726,120]
[379132589,1755152016069,-305.2323285,0.00059726,120]
[379132590,1755152016078,-400.0,0.00059726,120]
[379132591,1755152016087,-2306.91,0.00059726,120]
[379132592,1755152016096,-400.0,0.00059726,120]
[379132593,1755152016106,-1932.47,0.00059726,120]
[379132594,1755152016116,-1449.35,0.00059726,120]
[379132595,1755152016126,-400.0,0.00059726,120]
[379132596,1755152016135,-2898.61,0.00059726,120]
[379132597,1755152016145,-400.0,0.00059726,120]
[379132598,1755152016154,-597.08,0.00059726,120]
[379132599,1755152016164,-977.15,0.00059726,120]
[379132600,1755152016175,-605.25,0.00059726,120]
[379132601,1755152016185,-645.84,0.00059726,120]
[379132602,1755152016195,-400.0,0.00059726,120]
[379132603,1755152016205,-640.09,0.00059726,120]
[379132604,1755152016215,-2143.17,0.00059726,120]
[379132605,1755152016225,-1504.96,0.00059726,30]
[379132606,1755152016234,-400.0,0.00059726,120]
[379132607,1755152016244,-4441.35,0.00059726,60]
[379132608,1755152016253,-400.0,0.00059726,120]
[379132609,1755152016262,-1063.89,0.00059726,120]
[379132610,1755152016271,-400.0,0.00059726,120]
[379132611,1755152016281,-3704.26,0.00059726,120]
[379132612,1755152016291,-749.81,0.00059726,120]
[379132613,1755152016300,-400.0,0.00059726,120]
[379132614,1755152016310,-796.46,0.00059726,120]
[379132615,1755152016319,-680.22,0.00059726,120]
[379132616,1755152016329,-922.0,0.00059726,120]
[379132617,1755152016338,-2057.96,0.00059726,120]
[379132618,1755152016347,-1635.41,0.00059726,120]
[379132619,1755152016357,-400.0,0.00059726,120]
[379132620,1755152016367,-3741.78,0.00059726,120]
[379132621,1755152016376,-2448.92,0.00059726,120]
[379132622,1755152016385,-402.39161402,0.00059726,120]
[379132623,1755152016394,-400.0,0.00059726,120]
[379132624,1755152016404,-643.99,0.00059726,120]
[379132625,1755152016414,-1764.54,0.00059726,120]
[379132626,1755152016423,-773.35,0.00059726,120]
[379132627,1755152016432,-400.0,0.00059726,120]
[379132628,1755152016442,-400.0,0.00059726,120]
[379132629,1755152016451,-400.0,0.00059726,120]
[379132630,1755152016461,-400.0,0.00059726,120]
[379132631,1755152016471,-806.63,0.00059726,120]
[379132632,1755152016480,-3697.49,0.00059726,120]
[379132633,1755152016490,-400.0,0.00059726,120]
[379132634,1755152016624,-400.0,0.00059726,120]
[379132635,1755152016634,-321.44868832,0.00059726,120]
[379132636,1755152016644,-400.0,0.00059726,120]
[379132637,1755152016653,-2202.06,0.00059726,120]
[379132638,1755152016663,-2618.33,0.00059726,120]
[379132639,1755152016672,-400.0,0.00059726,120]
[379132640,1755152016682,-422.63,0.00059726,120]
[379132641,1755152016691,-1232.69,0.00059726,120]
[379132642,1755152016701,-400.0,0.00059726,120]
[379132643,1755152016711,-956.31,0.00059726,120]
[379132644,1755152016720,-787.12,0.00059726,120]
[379132645,1755152016730,-400.0,0.00059726,120]
[379132646,1755152016739,-946.92,0.00059726,120]
[379132647,1755152016748,-400.0,0.00059726,120]
[379132648,1755152016757,-2908.77,0.00059726,120]
[379132649,1755152016766,-698.51,0.00059726,120]
[379132650,1755152016775,-414.04,0.00059726,120]
[379132651,1755152016785,-3094.08,0.00059726,120]
[379132652,1755152016794,-1082.85,0.00059726,120]
[379132653,1755152016803,-1462.02,0.00059726,120]
[379132654,1755152016812,-1237.68,0.00059726,120]
[379132655,1755152016821,-1768.49,0.00059726,120]
[379132656,1755152016830,-400.0,0.00059726,120]
[379132657,1755152016839,-1704.18,0.00059726,120]
[379132658,1755152016849,-400.0,0.00059726,120]
[379132659,1755152016858,-1596.72,0.00059726,120]
[379132660,1755152016868,-1772.64,0.00059726,120]
[379132661,1755152016878,-2462.23,0.00059726,120]
[379132662,1755152016887,-1830.0,0.00059726,120]
[379132663,1755152016896,-2324.76,0.00059726,120]
[379132664,1755152016905,-400.0,0.00059726,120]
[379132665,1755152016915,-1017.9,0.00059726,120]
[379132666,1755152016925,-400.0,0.00059726,120]
[379132667,1755152016934,-1510.97,0.00059726,120]
[379132668,1755152016944,-400.0,0.00059726,120]
[379132669,1755152016956,-400.0,0.00059726,120]
[379132670,1755152016966,-2038.31,0.00059726,120]
[379132671,1755152016978,-970.53,0.00059726,120]
[379132672,1755152016987,-713.52,0.00059726,120]
[379132673,1755152016996,-755.88,0.00059726,120]
[379132674,1755152017006,-1143.04,0.00059726,120]
[379132675,1755152017017,-718.87,0.00059726,120]
[379132676,1755152017028,-556.99,0.00059726,120]
[379132677,1755152017038,-400.0,0.00059726,120]
[379132678,1755152017048,-276.02937709,0.00059726,120]
[379132679,1755152017058,-2571.66,0.00059726,120]
[379132680,1755152017067,-400.0,0.00059726,120]
[379132681,1755152017076,-400.0,0.00059726,120]
[379132682,1755152017085,-400.0,0.00059726,120]
[379132683,1755152017095,-533.67,0.00059726,120]
[379132684,1755152017104,-400.0,0.00059726,120]
[379132685,1755152017114,-1807.99,0.00059726,120]
[379132686,1755152017124,-1087.08,0.00059726,120]
[379132687,1755152017134,-407.33,0.00059726,120]
[379132688,1755152017143,-2899.38,0.00059726,120]
[379132689,1755152017153,-400.0,0.00059726,120]
[379132690,1755152017162,-400.0,0.00059726,120]
[379132691,1755152017171,-400.0,0.00059726,120]
[379132692,1755152017181,-924.51,0.00059726,120]
[379132693,1755152017191,-400.0,0.00059726,120]
[379132694,1755152017203,-400.0,0.00059726,120]
[379132695,1755152017213,-400.0,0.00059726,120]
[379132696,1755152017222,-3096.61,0.00059726,120]
[379132697,1755152017232,-400.0,0.00059726,120]
[379132698,1755152017241,-1363.2,0.00059726,120]
[379132699,1755152017251,-400.0,0.00059726,120]
[379132700,1755152017260,-1524.73,0.00059726,120]
[379132701,1755152017269,-400.0,0.00059726,120]
[379132702,1755152017279,-2258.0,0.00059726,120]
[379132703,1755152017288,-400.0,0.00059726,120]
[379132704,1755152017297,-982.03,0.00059726,120]
[379132705,1755152017307,-2813.54,0.00059726,120]
[379132706,1755152017316,-1859.15,0.00059726,120]
[379132707,1755152017326,-4282.75,0.00059726,120]
[379132708,1755152017335,-400.0,0.00059726,120]
[379132709,1755152017344,-633.33,0.00059726,120]
[379132710,1755152017353,-589.25,0.00059726,120]
[379132711,1755152017363,-409.89,0.00059726,120]
[379132712,1755152017372,-2107.25,0.00059726,120]
[379132713,1755152017382,-1069.77,0.00059726,120]
[379132714,1755152017391,-400.0,0.00059726,120]
[379132715,1755152017400,-400.0,0.00059726,120]
[379132716,1755152017410,-425.94,0.00059726,7]
[379132717,1755152017419,-400.0,0.00059726,120]
[379132718,1755152017428,-726.28,0.00059726,120]
[379132719,1755152017438,-400.0,0.00059726,120]
[379132720,1755152017449,-1895.43,0.00059726,120]
[379132721,1755152017459,-400.0,0.00059726,120]
[379132722,1755152017468,-400.0,0.00059726,120]
[379132723,1755152017478,-400.0,0.00059726,120]
[379132724,1755152017487,-400.0,0.00059726,120]
[379132725,1755152017497,-2422.29,0.00059726,120]
[379132726,1755152017506,-400.0,0.00059726,2]
[379132727,1755152017515,-563.93,0.00059726,120]
[379132728,1755152017525,-400.0,0.00059726,120]
[379132729,1755152017534,-400.0,0.00059726,120]
[379132730,1755152017544,-400.0,0.00059726,120]
[379132731,1755152017553,-610.6,0.00059726,120]
[379132732,1755152017563,-400.0,0.00059726,120]
[379132733,1755152017572,-433.74,0.00059726,120]
[379132734,1755152017581,-400.0,0.00059726,120]
[379132735,1755152017591,-400.0,0.00059726,120]
[379132736,1755152017600,-1120.18,0.00059726,120]
[379132737,1755152017611,-1082.87,0.00059726,120]
[379132738,1755152017625,-714.76,0.00059726,120]
[379132739,1755152017635,-2365.39,0.00059726,120]
[379132740,1755152017645,-2336.16,0.00059726,120]
[379132741,1755152017654,-1881.91,0.00059726,120]
[379132742,1755152017664,-400.0,0.00059726,120]
[379132743,1755152017673,-748.74,0.00059726,120]
[379132744,1755152017682,-1986.2,0.00059726,120]
[379132745,1755152017692,-1483.04,0.00059726,120]
[379132746,1755152017703,-400.0,0.00059726,120]
[379132747,1755152017712,-500.0,0.00059726,120]
[379132748,1755152017721,-2102.01,0.00059726,120]
[379132749,1755152017731,-1431.81,0.00059726,120]
[379132750,1755152017740,-491.79,0.00059726,120]
[379132751,1755152017749,-716.54,0.00059726,120]
[379132752,1755152017759,-2604.84,0.00059726,120]
[379132753,1755152017768,-400.0,0.00059726,120]
[379132754,1755152017778,-1150.55,0.00059726,120]
[379132755,1755152017787,-561.48,0.00059726,120]
[379132756,1755152017796,-400.0,0.00059726,120]
[379132757,1755152017805,-400.0,0.00059726,120]
[379132758,1755152017814,-400.0,0.00059726,120]
[379132759,1755152017824,-2590.07,0.00059726,120]
[379132760,1755152017833,-3380.76,0.00059726,120]
[379132761,1755152017843,-773.51,0.00059726,120]
[379132762,1755152017852,-1105.75,0.00059726,120]
[379132763,1755152017862,-644.06,0.00059726,120]
[379132764,1755152017872,-400.0,0.00059726,120]
[379132765,1755152017881,-921.37,0.00059726,120]
[379132766,1755152017890,-1957.54,0.00059726,120]
[379132767,1755152017900,-400.0,0.00059726,120]
[379132768,1755152017910,-3308.64,0.00059726,120]
[379132769,1755152017920,-828.75,0.00059726,120]
[379132770,1755152017929,-400.0,0.00059726,120]
[379132771,1755152017939,-1263.09,0.00059726,120]
[379132772,1755152017949,-862.06,0.00059726,120]
[379132773,1755152017959,-400.0,0.00059726,120]
[379132774,1755152017970,-4194.8,0.00059726,120]
[379132775,1755152017980,-2648.82,0.00059726,120]
[379132776,1755152017989,-675.62,0.00059726,120]
[379132777,1755152017999,-400.0,0.00059726,120]
[379132778,1755152018009,-400.0,0.00059726,120]
[379132779,1755152018019,-3141.33,0.00059726,120]
[379132780,1755152018028,-400.0,0.00059726,120]
[379132781,1755152018038,-799.3,0.00059726,120]
[379132782,1755152018049,-915.76,0.00059726,120]
[379132783,1755152018060,-1488.87,0.00059726,120]
[379132784,1755152018069,-4788.64,0.00059726,120]
[379132785,1755152018078,-400.0,0.00059726,120]
[379132786,1755152018087,-422.44,0.00059726,120]
[379132787,1755152018097,-828.18,0.00059726,120]
[379132788,1755152018106,-446.06,0.00059726,120]
[379132789,1755152018116,-558.99,0.00059726,120]
[379132790,1755152018126,-400.0,0.00059726,7]
[379132791,1755152018135,-3660.27,0.00059726,120]
[379132792,1755152018144,-4915.63,0.00059726,120]
[379132793,1755152018153,-400.0,0.00059726,120]
[379132794,1755152018163,-2959.01,0.00059726,120]
[379132795,1755152018172,-1671.55,0.00059726,120]
[379132796,1755152018182,-400.0,0.00059726,120]
[379132797,1755152018191,-405.57677187,0.00059726,120]
[379132798,1755152018202,-774.13,0.00059726,120]
[379132799,1755152018211,-588.75,0.00059726,120]
[379132800,1755152018221,-3563.05,0.00059726,120]
[379132801,1755152018231,-400.0,0.00059726,120]
[379132802,1755152018240,-400.0,0.00059726,120]
[379132803,1755152018249,-1411.75,0.00059726,120]
[379132804,1755152018259,-3034.35,0.00059726,120]
[379132805,1755152018267,-400.0,0.00059726,120]
[379132806,1755152018277,-405.0880449,0.00059726,120]
[379132807,1755152018286,-400.0,0.00059726,120]
[379132808,1755152018295,-421.42,0.00059726,120]
[379132809,1755152018304,-173.07722589,0.00059726,120]
[379132810,1755152018313,-10132.26,0.00059726,120]
[379132811,1755152018323,-400.0,0.00059726,120]
[379132812,1755152018333,-400.0,0.00059726,120]
[379132813,1755152018343,-3837.31,0.00059726,120]
[379132814,1755152018352,-2355.34,0.00059726,120]
[379132815,1755152018361,-619.36,0.00059726,120]
[379132816,1755152018371,-400.0,0.00059726,120]
[379132817,1755152018380,-530.45,0.00059726,120]
[379132818,1755152018390,-3741.18,0.00059726,120]
[379132819,1755152018400,-405.13904259,0.00059726,120]
[379132820,1755152018409,-2416.13,0.00059726,120]
[379132821,1755152018420,-5302.86,0.00059726,120]
[379132822,1755152018430,-400.0,0.00059726,120]
[379132823,1755152018439,-667.69,0.00059726,120]
[379132824,1755152018449,-1284.05,0.00059726,120]
[379132825,1755152018459,-2632.73,0.00059726,120]
[379132826,1755152018468,-1084.87,0.00059726,120]
[379132827,1755152018478,-405.17,0.00059726,120]
[379132828,1755152018488,-400.0,0.00059726,120]
[379132829,1755152018497,-400.0,0.00059726,120]
[379132830,1755152018507,-400.0,0.00059726,120]
[379132831,1755152018516,-981.71,0.00059726,120]
[379132832,1755152018525,-400.0,0.00059726,120]
[379132833,1755152018535,-400.0,0.00059726,120]
[379132834,1755152018546,-400.0,0.00059726,120]
[379132835,1755152018556,-3441.48,0.00059726,120]
[379132836,1755152018566,-5684.34,0.00059726,120]
[379132837,1755152018575,-1554.4,0.00059726,120]
[379132838,1755152018585,-400.0,0.00059726,120]
[379132839,1755152018595,-7477.84,0.00059726,120]
[379132840,1755152018605,-2982.26,0.00059726,120]
[379132841,1755152018616,-400.0,0.00059726,120]
[379132842,1755152018632,-11358.44,0.00059726,120]
[379132843,1755152018641,-2000.0,0.00059726,30]
[379132844,1755152018651,-596.58,0.00059726,120]
[379132845,1755152018660,-920.25,0.00059726,120]
[379132846,1755152018669,-1016.73,0.00059726,120]
[379132847,1755152018678,-669.84,0.00059726,120]
[379132848,1755152018688,-400.0,0.00059726,120]
[379132849,1755152018697,-400.0,0.00059726,120]
[379132850,1755152018706,-4187.8,0.00059726,120]
[379132851,1755152018715,-800.39,0.00059726,120]
[379132852,1755152018725,-451.56,0.00059726,120]
[379132853,1755152018734,-4953.23,0.00059726,120]
[379132854,1755152018744,-2280.27,0.00059726,120]
[379132855,1755152018754,-7813.46,0.00059726,120]
[379132856,1755152018764,-400.0,0.00059726,120]
[379132857,1755152018775,-3989.57,0.00059726,120]
[379132858,1755152018785,-4004.38,0.00059726,120]
[379132859,1755152018795,-4559.92,0.00059726,120]
[379132860,1755152018811,-505.94,0.00059726,120]
[379132861,1755152018825,-3221.19,0.00059726,120]
[379132862,1755152018834,-743.9,0.00059726,120]
[379132863,1755152018845,-400.0,0.00059726,120]
[379132864,1755152018854,-1566.01,0.00059726,120]
[379132865,1755152018863,-1621.03,0.00059726,120]
[379132866,1755152018873,-400.0,0.00059726,120]
[379132867,1755152018883,-400.0,0.00059726,120]
[379132868,1755152018892,-5315.13,0.00059726,120]
[379132869,1755152018901,-400.0,0.00059726,120]
[379132870,1755152018911,-230.94354686,0.00059726,120]
[379132871,1755152018921,-2645.16,0.00059726,120]
[379132872,1755152018930,-4739.44,0.00059726,120]